bitfinex/quotes_BTCUSD_20250417
["timestamp","ask_amount","ask_price","bid_price","bid_amount"]
[1744862788966,0.80703714,83949.0,83948.0,0.001421]
[1744862789865,0.39613714,83949.0,83948.0,0.001421]
[1744862797686,0.41835757,83949.0,83948.0,0.001421]
[1744862798879,0.42947346,83949.0,83948.0,0.001421]
[1744862800507,0.43782172,83949.0,83948.0,0.001421]
[1744862809203,0.30383296,83949.0,83948.0,0.001421]
[1744862809452,0.30383296,83949.0,83948.0,0.28916372]
[1744862809453,0.06559308,83949.0,83948.0,0.28916372]
[1744862809658,0.05724482,83949.0,83948.0,0.28916372]
[1744862809859,0.0182187,83949.0,83948.0,0.28916372]
[1744862810061,0.0162187,83949.0,83948.0,0.28916372]
[1744862810304,0.00510281,83949.0,83948.0,0.001421]
[1744862810546,0.00210281,83949.0,83948.0,0.000421]
[1744862810799,0.01930024,83949.0,83948.0,0.000421]
[1744862811017,0.02030024,83949.0,83948.0,0.000421]
[1744862812119,0.01830024,83949.0,83948.0,0.000421]
[1744862827227,0.06520024,83949.0,83948.0,0.000421]
[1744862827604,0.18464815,83949.0,83948.0,0.000421]
[1744862828462,0.199189,83949.0,83948.0,0.000421]
[1744862828863,0.21083921,83949.0,83948.0,0.000421]
[1744862829085,0.25261865,83949.0,83948.0,0.000421]
[1744862830845,0.25661865,83949.0,83948.0,0.000421]
[1744862831669,0.24496844,83949.0,83948.0,0.000421]
[1744862831867,0.29246844,83949.0,83948.0,0.000421]
[1744862832653,0.30456733,83949.0,83948.0,0.000421]
[1744862833189,0.31456733,83949.0,83948.0,0.000421]
[1744862833818,0.72546733,83949.0,83948.0,0.000421]
[1744862835451,0.73437688,83949.0,83948.0,0.000421]
[1744862836052,0.73337688,83949.0,83948.0,0.000421]
[1744862836460,0.73537688,83949.0,83948.0,0.000421]
[1744862837236,0.73137688,83949.0,83948.0,0.000421]
[1744862837644,0.73537688,83949.0,83948.0,0.001421]
[1744862844763,0.85482479,83949.0,83948.0,0.001421]
[1744862844980,0.25281195,83938.0,83937.0,0.000421]
[1744862845191,0.57747986,83938.0,83937.0,0.000421]
[1744862845402,0.59976217,83938.0,83937.0,0.000421]
[1744862845625,0.63607378,83938.0,83937.0,0.000421]
[1744862846257,0.63607378,83938.0,83937.0,0.001421]
[1744862846258,0.98507378,83938.0,83937.0,0.001421]
[1744862846486,0.84955378,83938.0,83937.0,0.001421]
[1744862846809,0.85455378,83938.0,83937.0,0.001421]
[1744862848519,1.26545378,83938.0,83937.0,0.001421]
[1744862850398,1.25545378,83938.0,83937.0,0.001421]
[1744862852867,1.37490169,83938.0,83937.0,0.001421]
[1744862853075,1.25545378,83938.0,83937.0,0.001421]
[1744862853947,1.25545378,83938.0,83937.0,1e-08]
[1744862854211,0.23830801,83925.0,83919.0,0.0004212]
[1744862854418,0.39457908,83925.0,83919.0,0.0004212]
[1744862854654,0.40457908,83925.0,83919.0,0.0004212]
[1744862854888,0.42134676,83925.0,83919.0,0.0004212]
[1744862855118,0.42970264,83925.0,83919.0,0.0004212]
[1744862855574,0.53053636,83925.0,83919.0,0.0004212]
[1744862855802,0.54167761,83925.0,83919.0,0.0004212]
[1744862856280,0.44384389,83925.0,83919.0,0.0004212]
[1744862856735,0.45299103,83925.0,83919.0,0.0004212]
[1744862857406,0.45799103,83925.0,83924.0,0.0014212]
[1744862862144,0.79799103,83925.0,83924.0,0.0014212]
[1744862864194,0.77570872,83925.0,83924.0,0.0014212]
[1744862865591,0.42656158,83925.0,83924.0,0.0014212]
[1744862866552,0.41656158,83925.0,83924.0,0.0014212]
[1744862871020,0.4082057,83925.0,83924.0,0.0014212]
[1744862872297,0.41655188,83925.0,83924.0,0.0014212]
[1744862875453,0.28256312,83925.0,83924.0,0.0014212]
[1744862875903,0.04425511,83925.0,83924.0,0.0014212]
[1744862876551,0.03311386,83925.0,83924.0,0.0014212]
[1744862876767,0.02476768,83925.0,83924.0,0.0014212]
[1744862880581,0.02176768,83925.0,83924.0,0.0014212]
[1744862880779,0.02276768,83925.0,83924.0,0.0014212]
[1744862880983,0.01776768,83925.0,83924.0,0.0004212]
[1744862881182,0.02076768,83925.0,83924.0,0.0014212]
[1744862885269,0.25907569,83925.0,83924.0,0.0014212]
[1744862891721,0.02076768,83925.0,83924.0,0.0014212]
[1744862892601,0.02076768,83925.0,83924.0,0.23973205]
[1744862892820,0.004,83925.0,83924.0,0.23973205]
[1744862893473,0.003,83925.0,83924.0,0.23973205]
[1744862893691,0.004,83925.0,83924.0,0.23973205]
[1744862894095,0.001,83925.0,83924.0,0.23873205]
[1744862894629,0.004,83925.0,83924.0,0.23873205]
[1744862895307,0.02073997,83925.0,83924.0,0.23873205]
[1744862895507,0.004,83925.0,83924.0,0.23873205]
[1744862895710,0.02073997,83925.0,83924.0,0.23873205]
[1744862898246,0.02073997,83925.0,83924.0,0.0004212]
[1744862898433,0.25904798,83925.0,83924.0,0.0004212]
[1744862903421,0.25886773,83925.0,83924.0,0.0004212]
[1744862904356,0.02055972,83925.0,83924.0,0.0004212]
[1744862925127,0.01821237,83925.0,83924.0,0.0004212]
[1744862926719,0.18456028,83925.0,83924.0,0.0004212]
[1744862930977,0.19910113,83925.0,83924.0,0.0004212]
[1744862931893,0.19762873,83925.0,83924.0,0.0004212]
[1744862932111,0.20162873,83925.0,83924.0,0.0014212]
[1744862932334,0.20362873,83925.0,83924.0,0.0014212]
[1744862932733,0.20162873,83925.0,83924.0,0.0014212]
[1744862933274,0.19762873,83925.0,83924.0,0.0004212]
[1744862933635,0.20262873,83925.0,83924.0,0.0014212]
[1744862934011,0.20562873,83925.0,83924.0,0.0014212]
[1744862936497,0.61652873,83925.0,83924.0,0.0014212]
[1744862952111,0.96652873,83925.0,83924.0,0.0014212]
[1744862952763,1.01152873,83925.0,83924.0,0.0014212]
[1744862952990,0.28652221,83920.0,83919.0,0.0004212]
[1744862953199,0.41597012,83920.0,83919.0,0.0004212]
[1744862953441,0.4325497,83920.0,83919.0,0.0004212]
[1744862953664,0.78709055,83920.0,83919.0,0.0004212]
[1744862953893,0.25287726,83915.0,83914.0,0.0004212]
[1744862954116,0.42962517,83915.0,83914.0,0.0004212]
[1744862954346,0.44614904,83915.0,83914.0,0.0008766]
[1744862954570,0.4581999,83915.0,83914.0,0.0008766]
[1744862955371,0.47769836,83915.0,83914.0,0.0008766]
[1744862955595,0.48657013,83915.0,83914.0,0.0008766]
[1744862955822,0.50885386,83915.0,83914.0,0.0008766]
[1744862956495,0.51685386,83915.0,83914.0,0.0018766]
[1744862956942,0.52285386,83915.0,83914.0,0.0028766]
[1744862957173,0.93375386,83915.0,83914.0,0.0028766]
[1744862959123,1.06927386,83915.0,83914.0,0.0028766]
[1744862960357,0.44009038,83915.0,83914.0,0.0028766]
[1744862961440,0.05002233,83915.0,83914.0,0.0028766]
[1744862962253,0.03052387,83915.0,83914.0,0.0028766]
[1744862962453,0.02752387,83915.0,83914.0,0.0028766]
[1744862962735,0.01652387,83915.0,83914.0,0.0008766]
[1744862963132,0.001,83915.0,83914.0,0.0008766]
[1744862963338,0.01751765,83915.0,83914.0,0.0008766]
[1744862963538,0.001,83915.0,83914.0,0.0008766]
[1744862963739,0.01751765,83915.0,83914.0,0.0008766]
[1744862964102,0.01754828,83915.0,83914.0,0.23921585]
[1744862965185,0.001,83915.0,83914.0,0.23921585]
[1744862965675,0.001,83915.0,83914.0,0.33761585]
[1744862965907,0.01657161,83915.0,83914.0,0.33761585]
[1744862966131,0.25022366,83925.0,83920.0,0.01191611]
[1744862966351,0.01191554,83924.0,83920.0,0.01191611]
[1744862966581,0.02847548,83924.0,83920.0,0.01191611]
[1744862967546,0.02847548,83924.0,83920.0,0.01291611]
[1744862967763,0.02847548,83924.0,83920.0,0.01191611]
[1744862967904,0.02847548,83924.0,83920.0,0.01291611]
[1744862970691,0.01191568,83923.0,83920.0,0.01291611]
[1744862971119,0.01665267,83922.0,83920.0,0.01291611]
[1744862971459,0.01665267,83922.0,83920.0,0.001]
[1744862972299,0.01191568,83923.0,83919.0,0.25023961]
[1744862972518,0.01191568,83923.0,83920.0,0.001]
[1744862972747,0.01191568,83923.0,83919.0,0.25023961]
[1744862973155,0.01191568,83923.0,83920.0,0.001]
[1744862973387,0.01191568,83923.0,83919.0,0.25023961]
[1744862973802,0.01191568,83923.0,83920.0,0.001]
[1744862974708,0.25022997,83923.0,83920.0,0.001]
[1744862975130,0.0167142,83922.0,83920.0,0.001]
[1744862975367,0.01191611,83920.0,83915.0,0.01191682]
[1744862975533,0.01191625,83919.0,83915.0,0.01191682]
[1744862975688,0.01672879,83919.0,83916.0,0.01191667]
[1744862976759,0.01772879,83919.0,83916.0,0.01191667]
[1744862976966,0.01672879,83919.0,83916.0,0.01191667]
[1744862977786,0.01672879,83919.0,83916.0,0.01291667]
[1744862978398,0.01672879,83919.0,83916.0,0.01491667]
[1744862979584,0.01672879,83919.0,83917.0,0.23833073]
[1744862979782,0.01191596,83921.0,83917.0,0.25024726]
[1744862980023,0.01672587,83920.0,83917.0,0.25024726]
[1744862980995,0.01672587,83920.0,83917.0,0.25124726]
[1744862981420,0.01672587,83920.0,83917.0,0.25024726]
[1744862981736,0.01672587,83920.0,83917.0,0.25224726]
[1744862981946,0.01672587,83920.0,83917.0,0.25024726]
[1744862982267,0.01672587,83920.0,83917.0,0.25324726]
[1744862982477,0.02864198,83920.0,83917.0,0.01491653]
[1744862982687,0.02864198,83920.0,83917.0,0.003]
[1744862986289,0.23832505,83919.0,83917.0,0.003]
[1744862986712,0.01671319,83918.0,83917.0,0.003]
[1744862987114,0.01671319,83918.0,83917.0,0.002]
[1744862987266,0.01671319,83918.0,83917.0,0.003]
[1744862987461,0.01671319,83918.0,83917.0,0.001]
[1744862987878,0.02862958,83918.0,83917.0,0.002]
[1744862988118,0.02862958,83918.0,83917.0,0.003]
[1744863005411,0.19747749,83918.0,83917.0,0.003]
[1744863006094,0.19747749,83918.0,83917.0,0.002]
[1744863006263,0.25024726,83917.0,83914.0,0.0008766]
[1744863006634,0.01730229,83916.0,83914.0,0.0008766]
[1744863007080,0.23833641,83915.0,83914.0,0.0008766]
[1744863007454,0.25564162,83915.0,83914.0,0.0008766]
[1744863010129,0.25664162,83915.0,83914.0,0.0008766]
[1744863021474,0.26778833,83915.0,83914.0,0.0008766]
[1744863024309,0.25664162,83915.0,83914.0,0.0008766]
[1744863031537,0.26282629,83915.0,83914.0,0.0008766]
[1744863045393,0.02448988,83915.0,83914.0,0.0008766]
[1744863045896,0.02448988,83915.0,83914.0,0.0494766]
[1744863046121,0.001,83915.0,83914.0,0.0494766]
[1744863046339,0.01191596,83921.0,83915.0,0.01191682]
[1744863046568,0.01191611,83920.0,83917.0,0.01191653]
[1744863046772,0.03539936,83920.0,83917.0,0.01191653]
[1744863046999,0.23833641,83915.0,83914.0,0.0018766]
[1744863047472,0.2618201,83915.0,83914.0,0.0008766]
[1744863048010,0.2618201,83915.0,83914.0,0.0028766]
[1744863048011,0.2628201,83915.0,83914.0,0.0028766]
[1744863048172,0.2618201,83915.0,83914.0,0.0008766]
[1744863048392,0.2618201,83915.0,83914.0,0.0018766]
[1744863048943,0.2618201,83915.0,83914.0,0.0028766]
[1744863049747,0.2618201,83915.0,83914.0,0.0018766]
[1744863049956,0.2628201,83915.0,83914.0,0.0008766]
[1744863071181,0.02448369,83915.0,83914.0,0.0008766]
[1744863072275,0.02348369,83915.0,83914.0,0.0008766]
[1744863072623,0.01191639,83918.0,83914.0,0.23921585]
[1744863072824,0.02344677,83917.0,83914.0,0.23921585]
[1744863073024,0.02344677,83917.0,83914.0,0.0008766]
[1744863073243,0.0353633,83917.0,83914.0,0.0008766]
[1744863074337,0.23833357,83916.0,83914.0,0.0008766]
[1744863074536,0.26183056,83916.0,83914.0,0.0008766]
[1744863075205,0.26183056,83916.0,83914.0,0.0018766]
[1744863075437,0.26183056,83916.0,83914.0,0.0008766]
[1744863075847,0.26183056,83916.0,83914.0,0.0018766]
[1744863079270,0.02349699,83916.0,83914.0,0.0018766]
[1744863084319,0.26183056,83916.0,83914.0,0.0018766]
[1744863084684,0.02349699,83916.0,83914.0,0.0018766]
[1744863085663,0.26183134,83916.0,83914.0,0.0018766]
[1744863089561,0.02349699,83916.0,83914.0,0.0018766]
[1744863091191,0.26183087,83916.0,83914.0,0.0018766]
[1744863093042,0.02349699,83916.0,83914.0,0.0018766]
[1744863093442,0.25024445,83918.0,83914.0,0.0018766]
[1744863093654,0.02349477,83917.0,83914.0,0.0018766]
[1744863094100,0.02349477,83917.0,83915.0,0.23833641]
[1744863094301,0.01191625,83919.0,83915.0,0.23833641]
[1744863094531,0.0234881,83916.0,83914.0,0.01279356]
[1744863094737,0.01191639,83918.0,83915.0,0.01191682]
[1744863095107,0.001,83917.0,83915.0,0.01191682]
[1744863095290,0.01191639,83918.0,83915.0,0.01191682]
[1744863095531,0.25024841,83917.0,83914.0,0.0008766]
[1744863096025,0.01191653,83917.0,83914.0,0.0008766]
[1744863096693,0.02349094,83916.0,83914.0,0.0008766]
[1744863097343,0.02349094,83916.0,83914.0,0.0018766]
[1744863097716,0.02349094,83916.0,83915.0,0.23833641]
[1744863097859,0.02349094,83916.0,83914.0,0.0008766]
[1744863098100,0.01191639,83918.0,83914.0,0.0028766]
[1744863098303,0.02349094,83915.0,83914.0,0.0028766]
[1744863098534,0.02349094,83915.0,83914.0,0.0018766]
[1744863098797,0.01191653,83917.0,83914.0,0.0018766]
[1744863099284,0.02349094,83916.0,83914.0,0.0018766]
[1744863099514,0.02349094,83916.0,83914.0,0.0008766]
[1744863099762,0.02349094,83916.0,83915.0,0.23833641]
[1744863099981,0.02349094,83916.0,83914.0,0.0018766]
[1744863100241,0.02350176,83915.0,83914.0,0.0028766]
[1744863100442,0.23833563,83916.0,83914.0,0.0028766]
[1744863100642,0.02350176,83915.0,83914.0,0.0018766]
[1744863101367,0.02350176,83915.0,83914.0,0.0008766]
[1744863101554,0.02350176,83915.0,83914.0,0.0018766]
[1744863101753,0.02350176,83915.0,83914.0,0.0008766]
[1744863102090,0.02350176,83915.0,83914.0,0.0018766]
[1744863102744,0.02350176,83915.0,83914.0,0.0028766]
[1744863111407,0.06890176,83915.0,83914.0,0.0028766]
[1744863113149,0.06890176,83915.0,83914.0,0.0008766]
[1744863114248,0.06990176,83915.0,83914.0,0.0008766]
[1744863114457,0.07190176,83915.0,83914.0,0.0008766]
[1744863114658,0.06990176,83915.0,83914.0,0.0008766]
[1744863115032,0.07290176,83915.0,83914.0,0.0018766]
[1744863120657,0.02750176,83915.0,83914.0,0.0018766]
[1744863134458,0.14694967,83915.0,83914.0,0.0018766]
[1744863134664,0.16149052,83915.0,83914.0,0.0018766]
[1744863134774,0.60305137,83915.0,83914.0,0.0018766]
[1744863134978,0.60679052,83915.0,83914.0,0.0018766]
[1744863136235,0.61564098,83915.0,83914.0,0.0018766]
[1744863138875,1.02654098,83915.0,83914.0,0.0018766]
[1744863141148,1.02554098,83915.0,83914.0,0.0018766]
[1744863141343,1.02454098,83915.0,83914.0,0.0008766]
[1744863141808,1.02854098,83915.0,83914.0,0.0018766]
[1744863142221,1.02654098,83915.0,83914.0,0.0018766]
[1744863142575,1.02454098,83915.0,83914.0,0.0008766]
[1744863142817,1.02954098,83915.0,83914.0,0.0018766]
[1744863145129,0.93424098,83915.0,83914.0,0.0018766]
[1744863190915,0.91073922,83915.0,83914.0,0.0018766]
[1744863191111,0.93405602,83915.0,83914.0,0.0018766]
[1744863191717,0.98025602,83915.0,83914.0,0.0018766]
[1744863198269,1.02725602,83915.0,83914.0,0.0018766]
[1744863199215,1.02225602,83915.0,83914.0,0.0008766]
[1744863199597,1.02825602,83915.0,83914.0,0.0018766]
[1744863200284,1.02625602,83915.0,83914.0,0.0018766]
[1744863200686,1.02925602,83915.0,83914.0,0.0018766]
[1744863201215,1.02625602,83915.0,83914.0,0.0018766]
[1744863201453,1.02925602,83915.0,83914.0,0.0018766]
[1744863205298,0.98225602,83915.0,83914.0,0.0018766]
[1744863205511,1.11765602,83915.0,83914.0,0.0018766]
[1744863207564,1.16575602,83915.0,83914.0,0.0018766]
[1744863208212,1.16275602,83915.0,83914.0,0.0018766]
[1744863208617,1.16575602,83915.0,83914.0,0.0018766]
[1744863208925,1.16275602,83915.0,83914.0,0.0018766]
[1744863209327,1.15675602,83915.0,83914.0,0.0008766]
[1744863209551,1.16175602,83915.0,83914.0,0.0008766]
[1744863209888,1.15675602,83915.0,83914.0,0.0008766]
[1744863210092,1.16275602,83915.0,83914.0,0.0008766]
[1744863210318,1.16575602,83915.0,83914.0,0.0008766]
[1744863213827,1.16575602,83915.0,83914.0,0.0003127]
[1744863219092,1.11765602,83915.0,83914.0,0.0003127]
[1744863221969,1.07145602,83915.0,83914.0,0.0003127]
[1744863225220,1.07020433,83915.0,83914.0,0.0003127]
[1744863247237,1.11770433,83915.0,83914.0,0.0003127]
[1744863260077,1.07020433,83915.0,83914.0,0.0003127]
[1744863260340,0.93480433,83915.0,83914.0,0.0003127]
[1744863260523,1.11714433,83915.0,83914.0,0.0003127]
[1744863263274,0.98170433,83915.0,83914.0,0.0003127]
[1744863263517,1.11714433,83915.0,83914.0,0.0003127]
[1744863274645,1.07024433,83915.0,83914.0,0.0003127]
[1744863296612,1.07024433,83915.0,83914.0,1e-08]
[1744863297294,1.10375864,83915.0,83914.0,1e-08]
[1744863298189,1.10075864,83915.0,83914.0,1e-08]
[1744863298389,1.06524433,83915.0,83914.0,1e-08]
[1744863298763,1.07224433,83915.0,83914.0,1e-08]
[1744863311137,0.93680433,83915.0,83914.0,1e-08]
[1744863311349,0.92226348,83915.0,83914.0,0.04870001]
[1744863311549,0.92226348,83915.0,83914.0,0.09630001]
[1744863312072,0.91526348,83915.0,83914.0,0.09630001]
[1744863312321,0.93280433,83915.0,83914.0,0.09630001]
[1744863312518,0.92980433,83915.0,83914.0,0.09630001]
[1744863312936,0.93380433,83915.0,83914.0,0.09630001]
[1744863313240,0.92980433,83915.0,83914.0,0.09630001]
[1744863313438,0.93180433,83915.0,83914.0,0.09630001]
[1744863313575,0.92295387,83915.0,83914.0,0.09630001]
[1744863313784,0.92095387,83915.0,83914.0,0.09630001]
[1744863314229,0.92295387,83915.0,83914.0,0.09630001]
[1744863315078,0.91895387,83915.0,83914.0,0.09630001]
[1744863315603,0.92295387,83915.0,83914.0,0.09630001]
[1744863318300,0.56841302,83915.0,83914.0,0.09630001]
[1744863318626,0.55841302,83915.0,83914.0,0.09630001]
[1744863319034,0.0293168,83915.0,83914.0,0.09630001]
[1744863319751,0.0273168,83915.0,83914.0,0.09630001]
[1744863320267,0.0273168,83915.0,83914.0,0.09730001]
[1744863321062,0.0233168,83915.0,83914.0,0.09730001]
[1744863321464,0.0243168,83915.0,83914.0,0.09730001]
[1744863322361,0.0243168,83915.0,83914.0,0.04860001]
[1744863322563,0.15830556,83915.0,83914.0,0.00100001]
[1744863322861,0.16830556,83915.0,83914.0,0.00100001]
[1744863323066,0.50830556,83915.0,83914.0,0.00100001]
[1744863323278,0.91920556,83915.0,83914.0,1e-08]
[1744863323626,0.92020556,83915.0,83914.0,1e-08]
[1744863324673,0.91920556,83915.0,83914.0,1e-08]
[1744863325194,0.92220556,83915.0,83914.0,1e-08]
[1744863327099,0.92120556,83915.0,83914.0,1e-08]
[1744863327426,0.92320556,83915.0,83914.0,1e-08]
[1744863327795,0.92020556,83915.0,83914.0,1e-08]
[1744863328181,0.92420556,83915.0,83914.0,1e-08]
[1744863328379,0.23839322,83895.0,83894.0,0.04692121]
[1744863328736,0.26095976,83895.0,83894.0,0.04692121]
[1744863329692,0.26195976,83895.0,83894.0,0.04692121]
[1744863330096,0.26195976,83895.0,83894.0,0.04892121]
[1744863333132,0.27418498,83895.0,83894.0,0.04892121]
[1744863337502,0.26195976,83895.0,83894.0,0.04892121]
[1744863338643,0.27310011,83895.0,83894.0,0.04892121]
[1744863339346,0.26195976,83895.0,83894.0,0.04892121]
[1744863340139,0.26195976,83895.0,83894.0,0.002]
[1744863343031,0.27309638,83895.0,83894.0,0.002]
[1744863344256,0.26195976,83895.0,83894.0,0.002]
[1744863348726,0.27310006,83895.0,83894.0,0.002]
[1744863350557,0.27210006,83895.0,83894.0,0.002]
[1744863350970,0.23840459,83891.0,83890.0,0.0475213]
[1744863351375,0.26093789,83891.0,83890.0,0.0475213]
[1744863352067,0.26093789,83891.0,83890.0,0.0495213]
[1744863352426,0.26193789,83891.0,83890.0,0.0495213]
[1744863354516,0.26193789,83891.0,83890.0,0.0024213]
[1744863355468,0.26193789,83891.0,83890.0,0.0004213]
[1744863355685,0.26193789,83891.0,83890.0,0.0024213]
[1744863355928,0.26093789,83891.0,83890.0,0.0024213]
[1744863356140,0.26193789,83891.0,83890.0,0.0024213]
[1744863356912,0.26193789,83891.0,83890.0,0.0004213]
[1744863357783,0.26193789,83891.0,83890.0,0.0024213]
[1744863374938,0.26193789,83891.0,83890.0,0.0004213]
[1744863375342,0.26093789,83891.0,83890.0,0.0004213]
[1744863375692,0.26193789,83891.0,83890.0,0.0004213]
[1744863376325,0.26293789,83891.0,83890.0,0.0004213]
[1744863385836,0.0245333,83891.0,83890.0,0.0004213]
[1744863386329,0.02328022,83891.0,83890.0,0.0004213]
[1744863388438,0.002,83891.0,83890.0,0.0495213]
[1744863388830,0.002,83891.0,83890.0,0.05190488]
[1744863389332,0.001,83891.0,83890.0,0.05190488]
[1744863389476,0.001,83891.0,83890.0,0.0495213]
[1744863389672,0.001,83891.0,83890.0,0.0505213]
[1744863389938,0.01191866,83902.0,83899.0,0.01191909]
[1744863390325,0.02175746,83901.0,83899.0,0.01191909]
[1744863390492,0.02175746,83901.0,83897.0,0.01191937]
[1744863390707,0.02175746,83901.0,83898.0,0.01191923]
[1744863391154,0.02175746,83901.0,83899.0,0.23838186]
[1744863391358,0.02175746,83901.0,83899.0,0.24076543]
[1744863391569,0.01191824,83905.0,83901.0,0.0119188]
[1744863391973,0.02179374,83904.0,83901.0,0.0119188]
[1744863392166,0.001,83902.0,83901.0,0.0119188]
[1744863392863,0.01191838,83904.0,83901.0,0.0119188]
[1744863393342,0.001,83902.0,83901.0,0.0119188]
[1744863393993,0.002,83902.0,83901.0,0.0119188]
[1744863394875,0.001,83902.0,83901.0,0.0119188]
[1744863395312,0.001,83902.0,83901.0,0.0617188]
[1744863395741,0.002,83902.0,83901.0,0.0617188]
[1744863397226,0.002,83902.0,83901.0,0.08400475]
[1744863397440,0.002,83902.0,83901.0,0.03420475]
[1744863397931,0.02379658,83902.0,83901.0,0.03420475]
[1744863398135,0.002,83902.0,83901.0,0.03420475]
[1744863398292,0.02379658,83902.0,83901.0,0.0119188]
[1744863398694,0.002,83902.0,83901.0,0.0119188]
[1744863399443,0.002,83902.0,83901.0,0.25029498]
[1744863401484,0.002,83902.0,83901.0,0.0119188]
[1744863401680,0.02379374,83902.0,83900.0,0.0495]
[1744863402178,0.02379374,83902.0,83899.0,0.25030095]
[1744863402563,0.02179374,83902.0,83899.0,0.25030095]
[1744863402760,0.02279374,83902.0,83901.0,0.23837618]
[1744863402963,0.02379374,83902.0,83901.0,0.23837618]
[1744863403168,0.02279374,83902.0,83901.0,0.23837618]
[1744863403350,0.02279374,83902.0,83899.0,0.25030095]
[1744863403783,0.02379374,83902.0,83899.0,0.25030095]
[1744863404916,0.02279374,83902.0,83899.0,0.25030095]
[1744863405115,0.02379374,83902.0,83899.0,0.25030095]
[1744863405315,0.02279374,83902.0,83899.0,0.25030095]
[1744863405730,0.02379374,83902.0,83899.0,0.25030095]
[1744863409396,0.02379374,83902.0,83900.0,0.23837653]
[1744863410372,0.02379374,83902.0,83901.0,0.00238357]
[1744863410814,0.02279374,83902.0,83901.0,0.00238357]
[1744863411045,0.02179374,83902.0,83901.0,0.00238357]
[1744863411457,0.001,83902.0,83901.0,0.00238357]
[1744863411688,0.01917832,83902.0,83901.0,0.02467095]
[1744863411912,0.001,83902.0,83901.0,0.02467095]
[1744863412117,0.01817832,83902.0,83901.0,0.02467095]
[1744863412351,0.25027887,83907.0,83903.0,0.01191852]
[1744863412774,0.25027887,83907.0,83904.0,0.02228738]
[1744863413209,0.25027887,83907.0,83905.0,0.02228738]
[1744863413624,0.25027887,83907.0,83906.0,0.02228738]
[1744863414313,0.25127887,83907.0,83906.0,0.02228738]
[1744863414809,0.25027887,83907.0,83906.0,0.02228738]
[1744863415045,0.25227887,83907.0,83906.0,0.02228738]
[1744863415508,0.25427887,83907.0,83906.0,0.02228738]
[1744863415882,0.25227887,83907.0,83906.0,0.02228738]
[1744863416115,0.25427887,83907.0,83906.0,0.02228738]
[1744863417189,0.01191852,83903.0,83900.0,0.01191895]
[1744863418502,0.001,83903.0,83900.0,0.01191895]
[1744863418903,0.002,83903.0,83900.0,0.01191895]
[1744863421415,0.25029837,83900.0,83896.0,0.01191951]
[1744863421625,0.01191895,83900.0,83896.0,0.01191951]
[1744863422057,0.01191895,83900.0,83897.0,0.25030691]
[1744863423029,0.01191895,83900.0,83897.0,0.01191937]
[1744863423251,0.01291852,83903.0,83897.0,0.01191937]
[1744863423252,0.01191852,83903.0,83898.0,0.01191923]
[1744863423504,0.01291895,83900.0,83897.0,0.01191937]
[1744863423717,0.01191895,83900.0,83897.0,0.01191937]
[1744863423948,0.01291895,83900.0,83897.0,0.01191937]
[1744863424727,0.01291895,83900.0,83897.0,0.2503066]
[1744863425503,0.001,83900.0,83897.0,0.2503066]
[1744863426518,0.01816799,83899.0,83897.0,0.2503066]
[1744863427709,0.001,83899.0,83897.0,0.2503066]
[1744863428031,0.01817083,83898.0,83897.0,0.2503066]
[1744863428223,0.01817083,83898.0,83897.0,0.01191937]
[1744863428433,0.01817083,83898.0,83897.0,0.25030691]
[1744863430117,0.01191895,83900.0,83897.0,0.25030691]
[1744863430315,0.01817083,83899.0,83897.0,0.25030691]
[1744863430609,0.001,83898.0,83897.0,0.25030691]
[1744863431170,0.01817368,83898.0,83897.0,0.25030691]
[1744863431654,0.001,83899.0,83897.0,0.25030691]
[1744863431852,0.01817652,83898.0,83897.0,0.25030691]
[1744863432030,0.01817652,83898.0,83897.0,0.01191937]
[1744863432998,0.01917652,83898.0,83897.0,0.01191937]
[1744863433213,0.01917652,83898.0,83897.0,0.25030691]
[1744863433626,0.001,83898.0,83897.0,0.25030691]
[1744863434724,0.001,83898.0,83897.0,0.27263789]
[1744863436379,0.001,83898.0,83897.0,0.3920858]
[1744863436584,0.001,83898.0,83897.0,0.4376858]
[1744863437132,0.001,83898.0,83897.0,0.4842858]
[1744863437306,4.543e-05,83915.0,83914.0,0.23833925]
[1744863437502,4.543e-05,83915.0,83914.0,0.26067023]
[1744863439054,4.543e-05,83915.0,83914.0,0.02333098]
[1744863439432,4.543e-05,83915.0,83914.0,0.001]
[1744863439870,0.01828011,83915.0,83914.0,0.001]
[1744863440195,0.01928011,83915.0,83914.0,0.003]
[1744863440386,0.0119171,83913.0,83909.0,0.01191767]
[1744863440615,0.01191724,83912.0,83909.0,0.01191767]
[1744863440820,0.03017573,83912.0,83909.0,0.01191767]
[1744863441165,0.02517573,83912.0,83909.0,0.01191767]
[1744863441799,0.02617573,83912.0,83909.0,0.01391767]
[1744863442192,0.26452241,83912.0,83909.0,0.003]
[1744863442643,0.02617573,83912.0,83909.0,0.003]
[1744863443894,0.26452184,83912.0,83909.0,0.003]
[1744863444175,0.23835061,83910.0,83909.0,0.003]
[1744863444550,0.25660021,83910.0,83909.0,0.003]
[1744863445085,0.25660021,83910.0,83906.0,0.01191809]
[1744863445371,0.01191767,83909.0,83906.0,0.01191809]
[1744863445612,0.01191795,83907.0,83904.0,0.01191838]
[1744863445847,0.23837334,83902.0,83901.0,0.13524]
[1744863446321,0.25551598,83902.0,83901.0,0.13524]
[1744863447440,0.25651598,83902.0,83901.0,0.13624]
[1744863447638,0.25551598,83902.0,83901.0,0.13524]
[1744863448046,0.25651598,83902.0,83901.0,0.13524]
[1744863448376,0.25751598,83902.0,83901.0,0.13524]
[1744863448774,0.01191937,83897.0,83894.0,0.0119198]
[1744863449128,0.0171597,83896.0,83894.0,0.0119198]
[1744863449500,0.0119198,83894.0,83890.0,0.01234167]
[1744863449944,0.01716332,83893.0,83890.0,0.01234167]
[1744863451332,0.01716332,83893.0,83890.0,0.25174643]
[1744863451768,0.01816332,83893.0,83890.0,0.25174643]
[1744863451965,0.01816332,83893.0,83890.0,0.01334167]
[1744863453987,0.01816332,83893.0,83891.0,0.23840459]
[1744863454258,0.001,83893.0,83891.0,0.23840459]
[1744863454941,0.01191923,83898.0,83894.0,0.0119198]
[1744863455887,0.01191895,83900.0,83896.0,0.01191951]
[1744863456100,0.01191866,83902.0,83898.0,0.01191923]
[1744863456484,0.01713987,83899.0,83898.0,0.01191923]
[1744863456684,0.01191866,83902.0,83898.0,0.01191923]
[1744863456823,0.01713703,83899.0,83898.0,0.01191923]
[1744863457024,0.01191866,83902.0,83898.0,0.01191923]
[1744863457224,0.01713703,83899.0,83898.0,0.01191923]
[1744863457941,0.0119188,83901.0,83898.0,0.01191923]
[1744863458141,0.01713703,83899.0,83898.0,0.01191923]
[1744863458365,0.0119188,83901.0,83898.0,0.01191923]
[1744863458521,0.01713703,83899.0,83898.0,0.01191923]
[1744863458750,0.0119188,83901.0,83898.0,0.01191923]
[1744863458947,0.01713703,83899.0,83898.0,0.01191923]
[1744863459156,0.01291866,83902.0,83899.0,0.01191909]